{"text_format":"1","workbook":"xlsx","n_sheets":1,"sheets":["Tabelle1"],"not_rendered":{"charts":0,"images":0,"macros":1,"external_links":0,"defined_names":1,"comments":0,"pivot_tables":0},"unopened":[],"bounds":{"document_bytes":16777216,"sheet_cells":100000,"rows_first":2000,"rows_last":500,"rows_between":2000,"halvings":0,"cell_chars":16384,"cell_head_chars":4096},"cells_cut":0,"cells_raw":0,"read":"whole","date_system":"1900"}

{"sheet":"Tabelle1","index":0,"n_rows":65,"n_cols":8,"rows_kept":65,"cut":false,"hidden":false,"merged":[]}
[]
[]
[]
[]
[null,null,null,null,null,null," "]
[]
[]
[]
[{"$f":"B22&\", \"&B23&\", \"&B24&\" \"&B25","v":"Manuela Mustermann, Musterstraße 2, 33333 Musterhausen"},null,{"$f":"B22","v":"Manuela Mustermann"},null,null," "]
["Universität Bielefeld",null,{"$f":"B23","v":"Musterstraße 2"}]
["Dezernat Finanzmanagement",null,{"$f":"B24&\" \"&B25","v":"33333 Musterhausen"}]
["Abteilung Finanzbuchhaltung",null," "]
["Fachbereich Kreditoren",null,{"$f":"\"Steuer-Nr. \"&B26","v":"Steuer-Nr. 222/246/338"}]
["Universitätsstraße 25",null,{"$f":"B27","v":"DE53471231250092643601"}]
["33615 Bielefeld",null,{"$f":"B25&\", den\"&TEXT(TODAY(),\" TT.MM.JJJJ\")","v":"Musterhausen, den 05.10.2021"}]
[" "]
[null,null,null,null,null," "]
[null,null,null,null,null," "]
["Rechnung für Korrekturassistenztätigkeit",null,"Rechnungs-Nr.:",null,"2021-1"," "]
[null,null,null,null," "]
[]
["Vor- und Nachname","Manuela Mustermann"," "]
["Straße und Hausnummer","Musterstraße 2",null,null,null," "]
["PLZ",33333]
["Wohnort","Musterhausen"]
["Steuernummer","222/246/338"]
["IBAN","DE53471231250092643601"]
["Werkvertrag vom","08.12.2020"]
["Belegnummer Veranstaltung",291002]
["Beautragender Lehrstuhl","LS Ransiek"]
["Bestellnummer falls bekannt"]
["Leistungsmonat","Januar 2021"]
[]
["Gegenstand/Leistung (Art der Klausur)","PSP-Element oder Kostenstelle","Menge","Einzelpreis\nnetto","Gesamtpreis \nnetto "]
["Klausur im Rahmen des Moduls 29-Str-Erg-WiWi (90 Minuten)",{"$f":"IF(C35>0,\"L-29-10-0000-0002\",\"\")","v":""},0,7.5,{"$f":"C35*D35","v":0}," "]
["Semsterabschlussklausur (Schreibdauer bis 120 Minuten)",{"$f":"IF(C36>0,\"L-29-10-0000-0002\",\"\")","v":"L-29-10-0000-0002"},1,7.5,{"$f":"C36*D36","v":7.5}," "]
["Semsterabschlussklausur (Schreibdauer ab 121 Minuten)",{"$f":"IF(C37>0,\"L-29-10-0000-0002\",\"\")","v":""},0,9.5,0]
["Klausur aus dem Klausurenkurs",{"$f":"IF(C38>0,\"L-29-10-0000-0008\",\"\")","v":""},0,10.5,0]
["Propädeutische Hausarbeit",{"$f":"IF(C39>0,\"L-29-10-0000-0002\",\"\")","v":""},0,11.5,0]
["(Fall)-Hausarbeit",{"$f":"IF(C40>0,\"L-29-10-0000-0002\",\"\")","v":""},0,13,0,"   ",null,"  "]
["vereinbarte und geleistete Zeitstunde für Aufsichtsführung",{"$f":"IF(C41>0,\"L-29-10-0000-0002\",\"\")","v":""},0,10.5,0," "]
[]
["Aufgrund des strukturellen Mehraufwandes, der sich durch die im Zusammenhang mit der "]
["Covid-19-Pandemie erfolgten Änderungen der Prüfungsbedingungen ergibt, wird für"]
["die Korrektur von Leistungen die zwischen dem 01.07.2020 und 30.09.2021 geschrieben "]
["wurden, ein pauschaler Mehrbetrag in Höhe von 5% gewährt. Diese Pauschale beträgt",null,null,null,{"$f":"SUM(E35:E41)*0.05","v":0.375}]
[" ",null," ",null," "]
["Rechnungssumme netto €",null,null,"   ",{"$f":"SUM(E35:E47)","v":7.875}," "]
["Umsatzsteuer €",null,"   ",0,{"$f":"E48*D49","v":0}]
["Gesamtpreis/Rechnungssumme €",null,null,"    ",{"$f":"SUM(E48:E49)","v":7.875}]
[]
["Die Rechnungsstellung erfolgt gem. § 19 UStG ohne Ausweis von Umsatzsteuer (gilt nur für Kleinunternehmer)"]
[]
[]
["sachlich und rechnerisch richtig"]
["Name","Koppka",null,null," "," "]
["Fakultät od. Einrichtung od. Fachbereich","Rechtswissenschaft"," "]
[]
[]
[" "]
[]
[]
[]
[]
[" ",null,null,null,null," "]